Cogmind - Beta 14 @@@ ROGUE MODE // 2025.03.13 @ 20:13:38 Player: UberDoot Result: Self-destructed Performance ------------- Evolutions (4) 2000 Regions Visited (13) 2600 Robots Destroyed (141) 705 Value Destroyed (3761) 3761 Prototype IDs (44) 880 Alien Tech Used (0) 0 Bonus (1094) 1094 TOTAL SCORE: 11040 Bonus ------- High Alert Combat Kills 105 Follower Combat Kills 419 Aligned with FarCom 300 Met Data Miner 300 Friendly Fire -30 Cogmind --------- Core Integrity 700/850 Matter 296/300 Energy 100/100 System Corruption 1% Temperature Cool (0) Movement Treading (160) Location -6/Factory Parts ------- > --- POWER (1) -------- (None) > --- PROPULSION (4) --- Light Treads Carbon-fiber Leg > --- UTILITY (6) ------ Improved Heat Sink Improved Heat Sink Advanced Heat Sink Medium Storage Unit > --- WEAPON (4) ------- Gatling Laser > --- INVENTORY (10) --- Improved Deuterium Engine Improved Cooling System Huge Storage Unit Improved Light Armor Plating Improved Shield Generator High-powered Tractor Beam Proton Cannon Gauss Rifle Powered Hammer Peak State ------------ > --- POWER ------------ Enhanced Nuclear Core > --- PROPULSION ------- Aerolev Unit Aerolev Unit Gravmag Array > --- UTILITY ---------- Medium Storage Unit Machine Analyzer Advanced Targeting Computer Advanced Transmission Jammer Hacking Suite > --- WEAPON ----------- Advanced Assault Cannon Advanced Assault Cannon Powered Hammer > --- INVENTORY -------- Light Nuclear Core Improved Cooling System Advanced Visual Processing Unit Layered Light Armor Plating High-powered Tractor Beam Advanced Beam Rifle 8R-AWN's Boregun Rocket Launcher Deploy-a-Sentry [Rating: 56] Favorites ----------- Power Cooled Ion Engine Engine Cooled Ion Engine Power Core Enhanced Nuclear Core Propulsion Light Treads Treads Light Treads Leg Aluminum Leg Wheel Armored Wheel Hover Unit Aerolev Unit Utility High-capacity Storage Unit Device Heat Sink Storage High-capacity Storage Unit Processor Machine Analyzer Hackware Hacking Suite Protection Hardened Light Armor Plating Weapon Advanced Assault Cannon Energy Gun Medium Laser Energy Cannon Advanced Beam Cannon Ballistic Gun Autogun Ballistic Cannon Advanced Assault Cannon Launcher Rocket Launcher Impact Weapon Powered Hammer Build | -11 -10 -10 -9 -9 -9 -8 -8 -7 -7 -7 -7 -6 -6 ------- Run | Yrd Mat Min Mat Min Exi Min Mat Fac Low Low Dat Pro Fac Slots Evolved 8 | . . . 2 . . . 2 2 . . . . 2 Power . | . . . . . . . . . . . . . . Propulsion 2 | . . . 1 . . . . 1 . . . . . Utility 4 | . . . . . . . 2 1 . . . . 1 Weapon 2 | . . . 1 . . . . . . . . . 1 Parts Attached 178 | 7 14 . 22 3 31 8 36 22 3 2 1 12 17 Power 18 | 1 3 . 6 . 1 1 1 1 . . 1 1 2 Engine 13 | 1 3 . 6 . 1 1 . . . . . . 1 Core 5 | . . . . . . . 1 1 . . 1 1 1 Reactor . | . . . . . . . . . . . . . . Propulsion 42 | 2 3 . 6 1 6 4 12 5 . . . . 3 Treads 23 | 2 2 . 6 1 5 2 3 . . . . . 2 Leg 9 | . . . . . . . 7 1 . . . . 1 Wheel 7 | . 1 . . . 1 2 2 1 . . . . . Hover 3 | . . . . . . . . 3 . . . . . Flight . | . . . . . . . . . . . . . . Utility 53 | 2 3 . 1 . 10 1 12 10 3 2 . 4 5 Device 25 | 1 2 . . . 3 . 5 5 . 1 . 4 4 Storage 7 | 1 1 . . . 2 . 2 1 . . . . . Processor 6 | . . . . . . . 2 1 3 . . . . Hackware 1 | . . . . . . . . 1 . . . . . Protection 14 | . . . 1 . 5 1 3 2 . 1 . . 1 Artifact . | . . . . . . . . . . . . . . Weapon 65 | 2 5 . 9 2 14 2 11 6 . . . 7 7 Energy Gun 13 | 1 2 . 1 . 1 1 3 1 . . . . 3 Energy Cannon 6 | . . . 2 1 . . 2 . . . . 1 . Ballistic Gun 18 | 1 1 . 5 1 6 . 1 . . . . 1 2 Ballistic Cannon 18 | . 1 . 1 . 5 . 5 3 . . . 3 . Launcher 7 | . 1 . . . 2 1 . 1 . . . 2 . Special Weapon . | . . . . . . . . . . . . . . Impact Weapon 3 | . . . . . . . . 1 . . . . 2 Slashing Weapon . | . . . . . . . . . . . . . . Piercing Weapon . | . . . . . . . . . . . . . . Special Melee Weapon . | . . . . . . . . . . . . . . Unidentified Prototypes 7 | . . . 3 . 1 . 3 . . . . . . Corrupted Parts 1 | . . . . . . . 1 . . . . . . System Corruption 1 | . . . . . . . 1 . . . . . . Parts Lost 44 | . 4 . 1 . 12 6 5 1 . 1 . 13 1 Power 8 | . 1 . 1 . 1 1 . 1 . . . 2 1 Propulsion 14 | . 1 . . . 5 3 2 . . . . 3 . Utility 10 | . 1 . . . 1 1 3 . . 1 . 3 . Weapon 12 | . 1 . . . 5 1 . . . . . 5 . Highest Loss Streak 11 | . 3 . 1 . 6 3 4 1 . 1 . 11 1 To Critical Strikes 5 | . . . . . 3 1 . . . . . 1 . Average Slot Usage (%) 90 | . 99 100 99 99 94 81 96 90 91 88 87 53 34 Engine 7 | . 13 14 10 11 10 9 1 . . . . . 1 Core 2 | . . . . . . . 7 6 7 5 2 2 1 Treads 21 | . 27 28 32 32 32 28 12 . . . . . 3 Leg 1 | . . . . . . . 10 1 . . . . . Hover 3 | . . . . . . . . 21 23 23 23 7 . Device 6 | . 14 14 1 . 2 5 11 5 7 7 7 9 7 Storage 10 | . 14 14 11 11 9 11 9 7 7 7 7 7 6 Processor 4 | . . . . . . . 9 15 20 19 15 11 3 Protection 4 | . . . 9 11 8 5 5 2 . 1 7 . . Energy Gun 3 | . 13 14 2 . . . 4 4 . . . . 2 Energy Cannon 1 | . . . 6 3 . . 5 . . . . . . Ballistic Gun 9 | . 10 . 14 29 20 . . 3 . . . 3 3 Ballistic Cannon 8 | . 3 14 9 . 7 16 15 10 15 15 15 6 . Peak Build Rating 56 | 7 9 9 19 18 29 25 40 56 56 56 53 53 36 Average Rating 23 | 6 7 8 16 17 19 20 34 52 55 54 51 28 16 On Entrance 26 | . 7 9 9 17 18 25 18 34 56 56 50 53 13 Naked Turns . | . . . . . . . . . . . . . . Heaviest Build 69 | 14 49 49 64 63 65 62 69 62 34 36 33 36 37 Greatest Support 63 | 40 40 40 60 60 60 63 60 36 36 36 36 36 40 Greatest Overweight (x) 7 | 4 4 1 1 1 1 5 6 4 . . . 5 7 Average Overweight (x) . | . . 1 . . . . 2 . . . . 1 2 Largest Inventory Capacity 20 | 8 20 20 20 20 20 20 20 20 10 10 10 10 10 Average Capacity 16 | 7 13 20 20 20 18 20 20 10 10 10 10 10 10 Most Carried 20 | 6 20 20 20 20 20 20 20 20 10 10 10 10 10 Average Carried 14 | 4 11 19 19 19 12 19 19 10 9 9 9 7 8 Final Capacity 20 | 8 20 20 20 20 20 20 20 10 10 10 10 10 10 Final Carried 20 | 6 20 20 20 20 20 19 20 10 10 10 9 6 9 Class Distribution -------------------- 47% | Mutant 32% | Tank 8% | Gunner 4% | Scavenger-Tank Dominant Class ---------------- Mutant | -10/Materials Mutant | -10/Mines Tank | -9/Materials Tank | -9/Mines Tank | -9/Exiles Mutant | -8/Mines Scavenger-Tank | -8/Materials Gunner | -7/Factory Mutant | -7/Lower Caves Mutant | -7/Lower Caves Scavenger-Mutant | -7/Data Miner Mutant | -6/Proximity Caves Mutant | -6/Factory Resources | -11 -10 -10 -9 -9 -9 -8 -8 -7 -7 -7 -7 -6 -6 ----------- Run | Yrd Mat Min Mat Min Exi Min Mat Fac Low Low Dat Pro Fac Matter Collected 5322 | 299 261 67 495 367 1006 247 1128 514 218 166 . 174 380 Remotely . | . . . . . . . . . . . . . . Salvage Created 4636 | 230 708 . 526 395 184 146 1094 444 154 52 . 112 591 Parts 263 | 12 34 . 34 17 33 8 64 29 4 . . 5 23 Haulers Intercepted 7 | . 2 . 2 . . . 3 . . . . . . Recyclers Shooed 5 | . 1 . 1 . . . 1 . . . . . 2 Parts Field Recycled . | . . . . . . . . . . . . . . Retrieved Matter . | . . . . . . . . . . . . . . Parts Self-Destructed 16 | . . . . . . . . . 7 1 . 8 . Prevented . | . . . . . . . . . . . . . . Kills | -11 -10 -10 -9 -9 -9 -8 -8 -7 -7 -7 -7 -6 -6 ------- Run | Yrd Mat Min Mat Min Exi Min Mat Fac Low Low Dat Pro Fac Combat Hostiles Destroyed 92 | . 14 . 10 7 3 5 21 13 4 1 . 6 8 Melee 1 | . . . . . . . . . . . . . 1 Guns 36 | . 12 . 6 7 . . 3 3 . . . . 5 Cannons 41 | . . . 4 . 1 2 18 7 4 1 . 4 . AOE 13 | . 2 . . . 2 3 . 3 . . . 2 1 Classes Destroyed 21 | 2 6 . 1 2 3 1 3 1 1 . . . 1 Worker 6 | . . . . . . . 3 2 . . . . 1 Builder 6 | . . . . . . . 3 2 . . . . 1 Tunneler 6 | 6 . . . . . . . . . . . . . Hauler 7 | . 2 . 2 . . . 3 . . . . . . Recycler 9 | 1 2 . 1 1 . . 2 . . . . . 2 Operator 1 | . 1 . . . . . . . . . . . . Turret 1 | . . . . . 1 . . . . . . . . Watcher 5 | . 1 . 2 . . . 2 . . . . . . Swarmer 28 | . 6 . 5 . . . 3 7 2 . . 4 1 Saboteur 2 | . . . . . . . . . . . . . 2 Grunt 32 | . 6 . 3 4 . 3 11 . 1 . . 1 3 Brawler 1 | . . . . . . 1 . . . . . . . Duelist 5 | . . . . 2 . 1 1 . . . . . 1 Sentry 10 | . . . 2 . . . 5 1 . . . 1 1 Demolisher 1 | . . . . 1 . . . . . . . . . Hunter 3 | . . . . . . . 1 1 1 . . . . Programmer 5 | . . . . . . . . 4 . 1 . . . Subdweller 2 | . 2 . . . . . . . . . . . . Zionite 8 | . . . . . 8 . . . . . . . . Samaritan 4 | . . . . . . . . . 3 1 . . . Assembled 2 | . . . . . 2 . . . . . . . . Best Kill Streak 5 | 3 4 . 3 3 3 3 5 4 2 1 . 3 5 Combat Bots Only 4 | . 3 . 3 3 1 3 4 4 2 1 . 3 4 Max Kills in Single Turn 3 | 1 1 . 1 2 1 3 2 3 1 1 . 1 1 Gunslinging 1 | . . . . 1 . . . . . . . . . Exploded 3 | . 1 . . . 1 3 . 3 . . . 1 1 Melee 1 | . . . . . . . . . . . . . 1 Uniques/NPCs Destroyed 4 | . . . . . 4 . . . . . . . . 8R-AWN (-9/Exiles) EX-DEC (-9/Exiles) EX-BIN (-9/Exiles) EX-HEX (-9/Exiles) Combat | -11 -10 -10 -9 -9 -9 -8 -8 -7 -7 -7 -7 -6 -6 -------- Run | Yrd Mat Min Mat Min Exi Min Mat Fac Low Low Dat Pro Fac Hostile Shots Fired 817 | . 78 . 27 31 131 65 157 62 27 25 . 141 73 Missed 254 | . 27 . 5 9 23 20 49 31 10 11 . 48 21 Damage Taken 8606 | . 691 . 322 480 1697 723 1738 395 253 111 . 1477 719 Core 1408 | . 107 . 35 81 130 66 151 59 25 20 . 584 150 Absorbed by Shields . | . . . . . . . . . . . . . . Redirected to Shielding 111 | . . . . . 111 . . . . . . . . Regen/Repaired (Parts) 354 | . . . 85 . . . 269 . . . . . . Core Remaining (%) 50 | 100 . 57 . . . 22 72 . . . . 1 . Volleys Fired 409 | 29 78 1 27 22 66 31 69 26 12 12 . 21 15 Largest 3 | 2 2 2 3 3 3 2 3 3 2 2 . 2 3 Hottest 177 | 70 85 85 130 114 101 78 177 139 96 96 . 96 131 Shots Fired 895 | 58 149 2 81 66 135 33 191 60 24 24 . 34 38 Gun 468 | 58 142 1 50 63 67 . 29 20 . . . . 38 Cannon 410 | . 3 1 31 3 64 29 162 39 24 24 . 30 . Launcher 17 | . 4 . . . 4 4 . 1 . . . 4 . Special . | . . . . . . . . . . . . . . Kinetic 651 | 29 74 1 66 63 129 29 115 47 24 24 . 28 22 Thermal 211 | 29 71 1 7 3 2 . 72 12 . . . 2 12 Explosive 17 | . 4 . . . 4 4 . 1 . . . 4 . Electromagnetic 16 | . . . 8 . . . 4 . . . . . 4 Robot Hit Streak 22 | 11 22 2 7 12 9 10 13 8 5 3 . 6 10 Robot Miss Streak 6 | 4 4 1 3 5 3 2 4 6 1 4 . 3 6 Penetration Max . | . . . . . . . . . . . . . . Secondary Targets 6 | . 1 . 1 2 . . . . . . . . 2 Max Gunslinging Chain 1 | . 1 . 1 1 . . . . . . . . 1 Autonomous 2 | . . . . . 2 . . . . . . . . Shots Hit Robots 568 | 38 103 1 46 37 83 21 118 37 19 13 . 18 34 Core Hits 264 | 13 37 . 20 12 43 14 44 19 6 3 . 9 44 Critical Kills 1 | . . . . . . . . 1 . . . . . Critical Parts Destroyed 7 | . . . . 1 1 . . 1 2 . . . 2 Critical Strikes 27 | 1 3 1 . 1 4 . 6 4 5 . . . 2 Burn 8 | 1 3 1 . . . . 2 1 . . . . . Destroy 3 | . . . . 1 2 . . . . . . . . Blast 10 | . . . . . 2 . 4 1 3 . . . . Smash 6 | . . . . . . . . 2 2 . . . 2 Melee Attacks 26 | . . . . . . . . 12 5 4 . . 5 Impact 26 | . . . . . . . . 12 5 4 . . 5 Slashing . | . . . . . . . . . . . . . . Piercing . | . . . . . . . . . . . . . . Sneak Attacks 13 | . . . . . . . . 5 4 1 . . 3 Combat Hostiles . | . . . . . . . . . . . . . . Follow-up Attacks . | . . . . . . . . . . . . . . Damage Inflicted 12565 | 396 1221 13 769 540 1641 706 2942 1331 776 413 . 814 1003 Guns 4396 | 396 1052 13 456 500 734 . 404 238 . . . . 603 Cannons 5820 | . 37 . 313 40 754 466 2538 550 361 331 . 430 . Explosions 1133 | . 132 . . . 108 240 . 161 . . . 384 108 Melee 1171 | . . . . . . . . 382 415 82 . . 292 Ramming 45 | . . . . . 45 . . . . . . . . Kinetic 7479 | 172 389 . 585 500 1461 466 1882 627 361 331 . 367 338 Thermal 2532 | 224 700 13 75 40 27 . 1020 161 . . . 63 209 Explosive 1025 | . 132 . . . 108 240 . 161 . . . 384 . Electromagnetic 313 | . . . 109 . . . 40 . . . . . 164 Impact 1171 | . . . . . . . . 382 415 82 . . 292 Slashing . | . . . . . . . . . . . . . . Piercing . | . . . . . . . . . . . . . . Highest Corruption 9 | . 1 1 . . 9 9 4 1 1 1 1 1 1 Average Corruption 3 | . 1 1 . . 8 9 3 1 1 1 1 1 1 Corruption Purged . | . . . . . . . . . . . . . . Corruption Blocked . | . . . . . . . . . . . . . . Effects 106 | . 6 2 . . 24 28 29 6 3 2 . 4 2 Message Errors 18 | . 1 . . . 5 8 4 . . . . . . Matter Fused 25 | . 2 1 . . 6 7 4 3 1 1 . . . Heat Flow Errors 16 | . . 1 . . 4 3 6 . . . . 2 . Energy Discharges 16 | . . . . . 7 3 4 . 1 . . 1 . Parts Rejected 1 | . . . . . . . 1 . . . . . . Data Loss (minor) 15 | . . . . . 2 4 4 2 1 1 . 1 . Data Loss (major) 5 | . 1 . . . . 1 3 . . . . . . Misfires 3 | . 1 . . . . . 1 1 . . . . . Alerts 1 | . . . . . . . . . . . . . 1 Weapon Failures 6 | . 1 . . . . 2 2 . . . . . 1 Overload Shots . | . . . . . . . . . . . . . . Overflow Damage 992 | . . . 35 . 17 42 76 158 368 77 . 82 137 Projectiles 159 | . . . 6 . 17 42 76 . . 15 . 3 . Explosions 108 | . . . 29 . . . . . . . . 79 . Melee 725 | . . . . . . . . 158 368 62 . . 137 Knockbacks 57 | . . . . . 7 6 29 3 3 6 . 3 . Impact 2 | . . . . . . . . 2 . . . . . Kinetic 47 | . . . . . 7 5 23 1 3 5 . 3 . Secondary 8 | . . . . . . 1 6 . . 1 . . . Self-Inflicted Damage 118 | . . . 69 . . 30 . . . . . . 19 Shots 3 | . . . 1 . . 1 . . . . . . 1 Rammed 13 | . . . . . 13 . . . . . . . . Targets Rammed 14 | . . . . . 14 . . . . . . . . Kicked . | . . . . . . . . . . . . . . Crushed 1 | . . . . . 1 . . . . . . . . Highest Temperature 617 | 210 108 260 617 92 273 258 259 164 168 150 . 302 8 Average Temperature 74 | 64 18 143 140 31 77 77 85 61 66 63 . 70 8 Received Heat Transfer 1911 | . 237 . 57 66 . 423 792 18 54 . . 72 192 Effects 7 | . . . 6 . . . 1 . . . . . . Energy Bleed 1 | . . . . . . . 1 . . . . . . Interference 1 | . . . 1 . . . . . . . . . . Matter Decay 1 | . . . 1 . . . . . . . . . . Short Circuit 2 | . . . 2 . . . . . . . . . . Damage (minor) 2 | . . . 2 . . . . . . . . . . Siege Activations . | . . . . . . . . . . . . . . Robots Corrupted 6 | . . . . . . . . 2 2 . . . 2 Combat Hostiles 1 | . . . . . . . . . . . . . 1 Parts Fried 13 | . . . . . . . . 3 2 1 . . 7 Impact Corruptions 33 | . . . . . . . . 6 21 3 . . 3 Robots Melted . | . . . . . . . . . . . . . . Combat Hostiles . | . . . . . . . . . . . . . . Parts Melted 9 | 1 6 . 1 . . . 1 . . . . . . Heat Transferred 6259 | 740 2257 111 148 74 37 . 2035 333 . . . 74 450 Parts Sabotaged 4 | . . . . . . . . . . . . . 4 Parts Stolen 3 | . . . . . . . . . . 3 . . . Parts Stripped . | . . . . . . . . . . . . . . Power Chain Reactions . | . . . . . . . . . . . . . . Alert | -11 -10 -10 -9 -9 -9 -8 -8 -7 -7 -7 -7 -6 -6 ------- Run | Yrd Mat Min Mat Min Exi Min Mat Fac Low Low Dat Pro Fac Peak Influence 762 | 35 290 30 222 140 . 104 402 262 . . . . 762 Initial 600 | . 22 30 . 40 . . 5 182 . . . . 600 Average 136 | 18 120 19 88 79 . 20 193 119 . . . . 534 Maximum Alert Level 3 | . 1 . 1 . . . 2 1 . . . . 3 Low Security (%) 76 | 100 89 100 86 100 . 100 51 70 . . . . . Level 1 16 | . 10 . 13 . . . 42 29 . . . . 16 Level 2 6 | . . . . . . . 5 . . . . . 78 Level 3 . | . . . . . . . . . . . . . 4 Level 4 . | . . . . . . . . . . . . . . Level 5 . | . . . . . . . . . . . . . . High Security . | . . . . . . . . . . . . . . Max Security . | . . . . . . . . . . . . . . Squads Dispatched 10 | . 3 . 1 . . . 2 3 . . . . 1 Investigation 1 | . . . . . . . . 1 . . . . . Extermination 2 | . . . . . . . . 1 . . . . 1 Reinforcement 7 | . 3 . 1 . . . 2 1 . . . . . Assault . | . . . . . . . . . . . . . . Garrison . | . . . . . . . . . . . . . . Intercept . | . . . . . . . . . . . . . . Searches Triggered 1 | . . . . . . . . . . . . . 1 Construction Impeded 1 | . . . . . . . . 1 . . . . . Haulers Reinforced . | . . . . . . . . . . . . . . Active Scanning Responses . | . . . . . . . . . . . . . . Cargo Convoy Interrupts 1 | . . . . . . . . . . . . . 1 Stealth | -11 -10 -10 -9 -9 -9 -8 -8 -7 -7 -7 -7 -6 -6 --------- Run | Yrd Mat Min Mat Min Exi Min Mat Fac Low Low Dat Pro Fac Distress Signals 8 | . 1 . 2 1 . . 4 . . . . . . Communications Jammed 4 | . . . . . . . . . 2 2 . . . Distress Signals 2 | . . . . . . . . . . 2 . . . Times Spotted 229 | . 29 . 18 21 40 10 38 17 9 8 . 11 28 Peak Tracking Total 16 | . 4 . 4 9 9 5 6 4 2 3 . 3 16 Tactical Retreats 31 | . 2 . 1 . 13 2 7 1 2 2 . 1 . Traps | -11 -10 -10 -9 -9 -9 -8 -8 -7 -7 -7 -7 -6 -6 ------- Run | Yrd Mat Min Mat Min Exi Min Mat Fac Low Low Dat Pro Fac Traps Triggered 5 | . 3 . . . . . . 1 . . . . 1 Indirectly . | . . . . . . . . . . . . . . Trap Hack Attempts . | . . . . . . . . . . . . . . Triggered . | . . . . . . . . . . . . . . Disarmed . | . . . . . . . . . . . . . . Reprogrammed . | . . . . . . . . . . . . . . Reused . | . . . . . . . . . . . . . . Traps Extracted . | . . . . . . . . . . . . . . Installed . | . . . . . . . . . . . . . . Triggered . | . . . . . . . . . . . . . . Machines | -11 -10 -10 -9 -9 -9 -8 -8 -7 -7 -7 -7 -6 -6 ---------- Run | Yrd Mat Min Mat Min Exi Min Mat Fac Low Low Dat Pro Fac Machines Disabled 23 | . 1 . 3 . 10 . 4 1 . . . . 4 Max in Single Turn 3 | . 1 . 2 . 1 . 2 1 . . . . 3 Garrison Access 2 | . . . . . . . . 2 . . . . . Machines Repaired . | . . . . . . . . . . . . . . Machines Dismantled . | . . . . . . . . . . . . . . Machines Sabotaged . | . . . . . . . . . . . . . . Overloaded Fab Kills . | . . . . . . . . . . . . . . Hacking | -11 -10 -10 -9 -9 -9 -8 -8 -7 -7 -7 -7 -6 -6 --------- Run | Yrd Mat Min Mat Min Exi Min Mat Fac Low Low Dat Pro Fac Machines Accessed 41 | . 4 . 7 . 2 . 5 15 1 . 4 . 3 Terminals 24 | . 4 . 5 . . . 4 11 . . . . . Fabricators 2 | . . . . . . . . 1 . . . . 1 Repair Stations 2 | . . . 1 . . . 1 . . . . . . Recycling Units 3 | . . . 1 . . . . 1 . . . . 1 Scanalyzers . | . . . . . . . . . . . . . . Garrison Access 3 | . . . . . . . . 2 . . . . 1 Total Hacks 132 | . 11 . 23 . 2 . 24 35 1 . 31 . 5 Successful 79 | . 7 . 13 . 2 . 13 11 1 . 31 . 1 Failed 53 | . 4 . 10 . . . 11 24 . . . . 4 Catastrophic 7 | . . . . . . . 2 4 . . . . 1 Database Lockouts . | . . . . . . . . . . . . . . Manual 37 | . 5 . 8 . 1 . 11 12 . . . . . Terminals 73 | . 11 . 17 . . . 16 29 . . . . . Fabricators 2 | . . . . . . . . 1 . . . . 1 Repair Stations 13 | . . . 5 . . . 8 . . . . . . Recycling Units 4 | . . . 1 . . . . 2 . . . . 1 Scanalyzers . | . . . . . . . . . . . . . . Garrison Access 6 | . . . . . . . . 3 . . . . 3 Terminal Hacks 57 | . 5 . 7 . 2 . 5 6 1 . 31 . . Record 12 | . . . . . 1 . . . . . 11 . . Part Schematic 14 | . 1 . . . . . 1 . . . 12 . . Robot Schematic 5 | . . . . . . . . . . . 5 . . Robot Analysis 3 | . 1 . 1 . . . 1 . . . . . . Prototype ID Bank 5 | . 1 . 1 . . . . . . . 3 . . Open Door 1 | . . . . . . . . . 1 . . . . Level Access Points 1 | . . . . . . . 1 . . . . . . Branch Access Points 2 | . 1 . 1 . . . . . . . . . . Terminal Index 2 | . . . 1 . . . . 1 . . . . . Alert Level 3 | . . . 1 . . . . 2 . . . . . Unreport Threat 3 | . . . . . . . . 3 . . . . . Locate Traps 1 | . . . 1 . . . . . . . . . . Hauler Manifests 3 | . 1 . . . . . 2 . . . . . . Registered Components 1 | . . . 1 . . . . . . . . . . Derelict Proto ID Bank 1 | . . . . . 1 . . . . . . . . Fabricator Hacks 1 | . . . . . . . . 1 . . . . . Network Status 1 | . . . . . . . . 1 . . . . . Repair Station Hacks 10 | . . . 4 . . . 6 . . . . . . Scan Component 5 | . . . 2 . . . 3 . . . . . . Repair 5 | . . . 2 . . . 3 . . . . . . Recycling Unit Hacks 1 | . . . . . . . . . . . . . 1 Retrieve Components 1 | . . . . . . . . . . . . . 1 Scanalyzer . | . . . . . . . . . . . . . . Garrison Access Hacks 2 | . . . . . . . . 2 . . . . . Seal Access 2 | . . . . . . . . 2 . . . . . Unauthorized Hacks 8 | . 2 . 2 . . . 2 2 . . . . . Terminals 8 | . 2 . 2 . . . 2 2 . . . . . Botnet 8 | . 2 . 2 . . . 2 2 . . . . . Fabricators . | . . . . . . . . . . . . . . Repair Stations . | . . . . . . . . . . . . . . Recycling Units . | . . . . . . . . . . . . . . Scanalyzers . | . . . . . . . . . . . . . . Garrison Access . | . . . . . . . . . . . . . . Data Cores Recovered . | . . . . . . . . . . . . . . Used . | . . . . . . . . . . . . . . Hacking Detections 32 | . 4 . 7 . . . 5 13 . . . . 3 Full Trace Events 1 | . . . . . . . . 1 . . . . . Feedback Events . | . . . . . . . . . . . . . . Feedback Blocked . | . . . . . . . . . . . . . . Robot Schematics Acquired 5 | . . . . . . . . . . . 5 . . Robots Built . | . . . . . . . . . . . . . . Authchips . | . . . . . . . . . . . . . . Time . | . . . . . . . . . . . . . . Total Robot Build Rating . | . . . . . . . . . . . . . . Part Schematics Acquired 14 | . 1 . . . . . 1 . . . 12 . . Parts Built . | . . . . . . . . . . . . . . Authchips . | . . . . . . . . . . . . . . Time . | . . . . . . . . . . . . . . Total Part Build Rating . | . . . . . . . . . . . . . . Parts Repaired 5 | . . . 2 . . . 3 . . . . . . Time 207 | . . . 52 . . . 155 . . . . . . Parts Recycled . | . . . . . . . . . . . . . . Recycled Matter . | . . . . . . . . . . . . . . Retrieved Matter . | . . . . . . . . . . . . . . Retrieved Components 3 | . . . . . . . . . . . . . 3 Parts Scanalyzed . | . . . . . . . . . . . . . . Part Schematics Acquired . | . . . . . . . . . . . . . . Parts Damaged . | . . . . . . . . . . . . . . Bothacking | -11 -10 -10 -9 -9 -9 -8 -8 -7 -7 -7 -7 -6 -6 ------------ Run | Yrd Mat Min Mat Min Exi Min Mat Fac Low Low Dat Pro Fac Used RIF Installer . | . . . . . . . . . . . . . . Robots Hacked . | . . . . . . . . . . . . . . Non-combat . | . . . . . . . . . . . . . . Combat . | . . . . . . . . . . . . . . Robot Hacks Applied . | . . . . . . . . . . . . . . Relay Couplers Released . | . . . . . . . . . . . . . . Fabnet Peak Effective % . | . . . . . . . . . . . . . . Robots Rewired . | . . . . . . . . . . . . . . Allies Hacked . | . . . . . . . . . . . . . . Hacks Repelled . | . . . . . . . . . . . . . . Allies | -11 -10 -10 -9 -9 -9 -8 -8 -7 -7 -7 -7 -6 -6 -------- Run | Yrd Mat Min Mat Min Exi Min Mat Fac Low Low Dat Pro Fac Total Allies 4 | . . 3 . . . . . . . . . 1 . Largest Group 3 | . . 3 3 . . . . . . . . 1 1 Highest-Rated Group 96 | . . 40 40 . . . . . . . . 96 96 Highest-Rated Ally 96 | . . 16 16 . . . . . . . . 96 96 Total Orders . | . . . . . . . . . . . . . . Ally Attacks 72 | . . . 39 . . . . . . . . 10 23 Total Damage 1591 | . . . 398 . . . . . . . . 423 770 Kills 17 | . . . 6 . . . . . . . . 4 7 Allies Corrupted . | . . . . . . . . . . . . . . Allies Melted 1 | . . . . . . . . . . . . . 1 Intel | -11 -10 -10 -9 -9 -9 -8 -8 -7 -7 -7 -7 -6 -6 ------- Run | Yrd Mat Min Mat Min Exi Min Mat Fac Low Low Dat Pro Fac Robot Analysis Total 3 | . 1 . 1 . . . 1 . . . . . . Derelict Logs Recovered 6 | . . 2 . 1 . . . . 2 1 . . . Drone Launches . | . . . . . . . . . . . . . . Drone Recoveries . | . . . . . . . . . . . . . . Exploration | -11 -10 -10 -9 -9 -9 -8 -8 -7 -7 -7 -7 -6 -6 ------------- Run | Yrd Mat Min Mat Min Exi Min Mat Fac Low Low Dat Pro Fac Turns Passed 12552 | 303 1568 619 1308 830 2648 731 1530 1060 388 367 54 498 648 Spaces Moved 7653 | 134 672 255 544 307 1133 335 513 1769 666 631 80 363 251 Core 310 | 26 . . . . . . . . . . . 98 186 Treads 3599 | 108 661 255 544 307 1133 333 193 . . . . . 65 Legs 195 | . . . . . . . 187 8 . . . . . Wheels 166 | . 11 . . . . 2 133 20 . . . . . Hover 3383 | . . . . . . . . 1741 666 631 80 265 . Flight . | . . . . . . . . . . . . . . Fastest Speed 45 | 50 140 240 160 160 160 160 115 45 45 45 45 45 100 Average Speed 134 | 148 189 240 202 239 204 190 202 46 45 45 45 112 220 Slowest Speed 400 | 250 320 240 240 240 240 240 260 190 45 45 45 300 400 Overloaded Moves . | . . . . . . . . . . . . . . Propulsion Burnouts . | . . . . . . . . . . . . . . Robots Hopped . | . . . . . . . . . . . . . . Cave-ins Triggered . | . . . . . . . . . . . . . . Exploration Rate (%) 56 | 7 91 52 48 60 91 78 41 35 68 81 72 56 8 Regions Visited 13 Branch Regions 8 Pre-discovered Areas 2 | . . . . . 1 . . . . . 1 . . Known Exits Taken 6 | . 1 . 1 . . . 1 1 1 . . 1 . Unknown Exits Taken 7 | 1 . 1 . 1 1 1 . . . 1 1 . . Scrap Searched 12 | . . 1 . 1 . 1 . . 4 4 . 1 . Spaces Dug 15 | . . . . . . 4 . 7 1 3 . . . Terrain Destroyed 216 | . 6 . 47 . 26 31 32 16 5 8 . 45 . Melee 11 | . . . . . . . . 7 1 3 . . . Projectile 57 | . . . . . 3 3 32 7 4 5 . 3 . AOE 148 | . 6 . 47 . 23 28 . 2 . . . 42 . Terrain Rammed . | . . . . . . . . . . . . . . Walls Destroyed . | . . . . . . . . . . . . . . Machines Disabled . | . . . . . . . . . . . . . . Actions | -11 -10 -10 -9 -9 -9 -8 -8 -7 -7 -7 -7 -6 -6 --------- Run | Yrd Mat Min Mat Min Exi Min Mat Fac Low Low Dat Pro Fac Total 9090 | 183 830 262 706 361 1336 395 860 1937 724 682 97 416 301 Wait 531 | 8 41 3 72 17 32 14 189 62 26 31 17 17 2 Move 7640 | 133 671 254 543 306 1132 334 512 1768 665 630 79 362 251 Hop . | . . . . . . . . . . . . . . Pick Up 117 | 6 18 2 13 6 26 4 18 9 6 2 . 2 5 Fast Attach 88 | 7 7 . 14 2 9 2 25 4 2 1 . 1 14 Attach 53 | . 4 . 4 . 12 4 8 10 1 1 1 6 2 Detach 32 | . 3 . 3 . 9 1 6 4 3 1 . 1 1 Swap 37 | . 3 . 4 1 10 2 3 8 . . . 5 1 Drop 130 | . 5 2 26 7 26 3 30 21 4 . . 1 5 Fire 409 | 29 78 1 27 22 66 31 69 26 12 12 . 21 15 Melee 26 | . . . . . . . . 12 5 4 . . 5 Ram . | . . . . . . . . . . . . . . Kick . | . . . . . . . . . . . . . . Crush 14 | . . . . . 14 . . . . . . . . Escape Stasis 13 | . . . . . . . . 13 . . . . . Rewire . | . . . . . . . . . . . . . . Trap . | . . . . . . . . . . . . . . Miscellaneous . | . . . . . . . . . . . . . . Route ------- -11/Scrapyard -10/Materials (discovered 5 exits: *Mat x3 / *Min x2) -10/Mines (discovered 2 exits: *Mat x2) -9/Materials (discovered 4 exits: *Mat / *Min x2 / *Sto) -9/Mines (discovered 2 exits: *Mat / *Exi) -9/Exiles -8/Mines -8/Materials (discovered 3 exits: *Fac x3) -7/Factory (discovered 3 exits: *Fac x2 / *Low) -7/Lower Caves -7/Lower Caves -7/Data Miner -6/Proximity Caves -6/Factory (discovered 2 exits: Fac / Ext) History --------- Turn | Location | Event 8 | -11/Scrapyard | Discovered new exit (range 15) 304 | -11/Scrapyard | Entered Materials 305 | -10/Materials | Build established: Mutant 365 | -10/Materials | Discovered new exit (range 7) 377 | -10/Materials | Discovered new exit (range 13) 676 | -10/Materials | Discovered new exit (range 16) 833 | -10/Materials | Discovered new exit (range 14) 904 | -10/Materials | Derelicts attacked the area 919 | -10/Materials | Identified exit to Mines 1192 | -10/Materials | Lost 3 parts (1p1n1w) 1238 | -10/Materials | Discovered new exit (range 15) 1872 | -10/Materials | Entered Mines 2037 | -10/Mines | Learned 2 Materials zone layouts 2198 | -10/Mines | Discovered new exit (range 6) 2202 | -10/Mines | Learned Materials emergency access door positions 2233 | -10/Mines | Received a Rocket Launcher from a helpful Derelict 2278 | -10/Mines | Discovered new exit (range 7) 2479 | -10/Mines | Assisted by bots powering up and referring to "LRC-V3" 2491 | -10/Mines | Entered Materials 2491 | -9/Materials | Accompanied by 3 allies 2491 | -9/Materials | Evolved 2 slots: Propulsion x1, Weapon x1 2515 | -9/Materials | Discovered new exit (range 14) 2768 | -9/Materials | Discovered new exit (range 9) 2780 | -9/Materials | Identified exit to Mines 2780 | -9/Materials | Identified exit to Storage 2878 | -9/Materials | Repaired Ion Engine 2906 | -9/Materials | Repaired Lgt. Treads 3004 | -9/Materials | Build established: Tank 3799 | -9/Materials | Entered Mines 3882 | -9/Mines | Discovered new exit (range 4) 4111 | -9/Mines | Joined a pair of Derelicts in attacking an 0b10 outpost 4289 | -9/Mines | Assembled infested the area 4317 | -9/Mines | Met 8R-AWN 4478 | -9/Mines | Learned location of 1 exit from Lower Caves 4619 | -9/Mines | Discovered new exit (range 5) 4629 | -9/Mines | Entered Exiles 4689 | -9/Exiles | Welcomed by 8R-AWN 4728 | -9/Exiles | Met EX-HEX 4807 | -9/Exiles | Met EX-BIN 4838 | -9/Exiles | Aligned with FarCom system 4841 | -9/Exiles | Given EX-Vault access code 4901 | -9/Exiles | Opened EX-Vault 4965 | -9/Exiles | Warned to stay clear of 0b10 Research branches 5035 | -9/Exiles | Met EX-DEC 5047 | -9/Exiles | Learned location of Zion (-6) 5183 | -9/Exiles | Discovered new exit (range 14) 5446 | -9/Exiles | Learned about 8R-AWN's background 5836 | -9/Exiles | Attacked by the Exiles 5997 | -9/Exiles | Destroyed 8R-AWN 6004 | -9/Exiles | Lost 6 parts (2n1u3w) 6005 | -9/Exiles | Found Prototype Ballistic Gun 6157 | -9/Exiles | Identified 8R-AWN's Boregun 6396 | -9/Exiles | Found AWS/Thermal 6591 | -9/Exiles | Core integrity fell below 50% 6630 | -9/Exiles | Destroyed EX-DEC 6650 | -9/Exiles | Lost 6 parts (1p3n2w) 6656 | -9/Exiles | Destroyed EX-BIN 6684 | -9/Exiles | Destroyed EX-HEX 6802 | -9/Exiles | Found Deploy-a-Sentry 6876 | -9/Exiles | Build established: Mutant 7277 | -9/Exiles | Left Exiles lab with Deploy-a-Sentry 7277 | -9/Exiles | Entered Mines 7661 | -8/Mines | Lost 3 parts (1p1u1w) 7974 | -8/Mines | Discovered new exit (range 8) 8008 | -8/Mines | Entered Materials 8008 | -8/Materials | Evolved 2 slots: Utility x2 8505 | -8/Materials | Build established: Tank 8815 | -8/Materials | Build established: Scavenger-Tank 8931 | -8/Materials | Lost 4 parts (2n2u) 8992 | -8/Materials | Identified exit to Factory 9078 | -8/Materials | Repaired Adv. Beam Cannon 9124 | -8/Materials | Repaired Adv. Assault Cannon 9185 | -8/Materials | Repaired Adv. Beam Rifle 9538 | -8/Materials | Entered Factory 9538 | -7/Factory | Evolved 2 slots: Propulsion x1, Utility x1 10075 | -7/Factory | Build established: Gunner 10266 | -7/Factory | Discovered new exit (range 4) 10269 | -7/Factory | Identified exit to Factory 10277 | -7/Factory | Discovered new exit (range 16) 10283 | -7/Factory | Identified exit to Lower Caves 10335 | -7/Factory | Discovered exit to Factory (range 12) 10576 | -7/Factory | Build established: Mutant 10598 | -7/Factory | Entered Lower Caves 10599 | -7/Lower Caves | Identified exit to Lower Caves 10616 | -7/Lower Caves | Learned 8 Factory zone layouts 10876 | -7/Lower Caves | Encountered a Warlord checkpoint 10985 | -7/Lower Caves | Ambushed by wild Derelicts 10986 | -7/Lower Caves | Entered another Lower Caves area 10987 | -7/Lower Caves | Encountered a Warlord checkpoint 11096 | -7/Lower Caves | Learned Factory emergency access door positions 11162 | -7/Lower Caves | Spotted B-75 Beast 11289 | -7/Lower Caves | Spotted YU-1GE(f) 11290 | -7/Lower Caves | Spotted MZ-ROI(f) 11291 | -7/Lower Caves | Encountered a Master Thief 11291 | -7/Lower Caves | Encountered a Master Thief 11291 | -7/Lower Caves | Spotted R7-C7Y(f) 11292 | -7/Lower Caves | Encountered a Master Thief 11292 | -7/Lower Caves | Deploy-a-Sentry stolen by Master Thief 11294 | -7/Lower Caves | 8R-AWN's Boregun stolen by Master Thief 11296 | -7/Lower Caves | Enh. Nuclear Core stolen by Master Thief 11309 | -7/Lower Caves | Discovered new exit (range 9) 11353 | -7/Lower Caves | Entered Data Miner 11353 | -7/Data Miner | Discovered new exit (range 6) 11360 | -7/Data Miner | Met Data Miner 11370 | -7/Data Miner | Learned location of Section 7 (-2) 11370 | -7/Data Miner | Acquired the access code to Warlord's prototype stash 11378 | -7/Data Miner | Received God Mode back door access code from Data Miner 11407 | -7/Data Miner | Entered Proximity Caves 11516 | -6/Proximity Caves | Spotted B-75 Beast 11541 | -6/Proximity Caves | Spotter reported a threat 11570 | -6/Proximity Caves | Attracted the attention of an 0b10 checkpoint 11651 | -6/Proximity Caves | Spotter reported a threat 11653 | -6/Proximity Caves | Core integrity fell below 50% 11673 | -6/Proximity Caves | Escorted by Enhanced Grunt 11676 | -6/Proximity Caves | Core integrity fell below 20% 11705 | -6/Proximity Caves | Lost 11 parts (1p2n3u5w) 11739 | -6/Proximity Caves | Spotter reported a threat 11764 | -6/Proximity Caves | Spotter reported a threat 11882 | -6/Proximity Caves | Discovered exit to Factory (range 10) 11905 | -6/Proximity Caves | Entered Factory 11905 | -6/Factory | Accompanied by 1 ally 11905 | -6/Factory | Evolved 2 slots: Utility x1, Weapon x1 11906 | -6/Factory | Identified exit to Factory 11906 | -6/Factory | Identified exit to Extension 12255 | -6/Factory | Search patrols dispatched 12539 | -6/Factory | Cargo convoy interrupted 12553 | -6/Factory | Self-destructed Last Messages --------------- 12542_ Enhanced Grunt heat damages Prototype Storage. 12542_ K-01 Serf collects debris. 12542_ U-05 Engineer lays Concrete. 12545_ K-01 Serf collects debris. 12546_ U-05 Engineer lays Concrete. 12548_ Slug penetrates Wall. 12548_ Autogun blown off. 12548_ Hrd. Medium Armor Plating blown off. 12548_ Lgt. Treads blown off. 12548_ Flak Gun blown off. 12548_ E-15 Imp destroyed. 12548_ U-05 Engineer lays Concrete. 12549_ K-01 Serf collects debris. 12550_ U-05 Engineer lays Concrete. 12551_ E-15 Imp destroyed. 12551_ Slug penetrates Wall. 12551_ Lgt. Nuclear Core destroyed. 12551_ Slug penetrates Wall. 12552_ U-05 Engineer lays Concrete. 12552_ K-01 Serf collects debris. Map ----- +----------------------------------------------------+ | ?????????????????????????????????????????????????? | | ?????????????????????????????????????????????????? | | ?????????????????????????????????????????????????? | | ?????????????????????????????????????????????????? | | ?????????????????????????????????????????????????? | | ?????????????????????????????????????????????????? | | ?????????????????????????????????????????????????? | | ?????????????????????????? "" ??????????????????? | | ???????????????????????? ????????????????? | | ???????????????????????? ????????????????? | | ???????????????????????? i ????????????????? | | ???????????????????????? ????????????????? | | ????????????????????????# %" #????????????????? | | ????????????????????????# Y #????????????????? | | ????????????????????????# #????????????????? | | ????????????????????????# *% #????????????????? | | ????????????????????????# +????????????????? | | ????????????????????????# #????????????????? | | ????????????????????????# = #????????????????? | | ????????????????????????# % #????????????????? | | ????????????????????????#b %p #????????????????? | | ?????????????????????####g##/#######?????????????? | | ?????????????????????#; *%!=p[ #?????????????? | | ?????????????????????#; /[=%! [ #?????????????? | | ?????????????????????## %=%=%*% ! #?????????????? | | ??????????????????????# =@[/[u !!=#?????????????? | | ??????????????????????# !* *k!############### | | ??????????????????????# / | | ??????????????????????# ############### | | ??????????????????????# #?????????????? | | ??????????????????????# #?????????????? | | ??????????????????????# #?????????????? | | ??????????????????????# #?????????????? | | ??????????????????????# #????????###### | | ??????????????????????##/###########??????# | | ???????????????????????# ?????????????????# | | ???????????????????????# ?????????????????# | | ???????????????????????# ?????????????????# | | ???????????????????????#+?????????????????# | | ??????????????????????????????????????????# | | ??????????????????????????????????????????# | | ?????????????????????????+????????????????# ###### | | ??????????????????????????????????????????#??#! !! | | ?????????????????????????????????????????????# !! | | ?????????????????????????????????????????????# !! | | ?????????????????????????????????????????????# | | ?????????????????????????????????????????????# ! | | ?????????????????????????????????????????????##### | | ???????????????????????????+?????????????????????? | | ?????????????????????????????????????????????????? | +----------------------------------------------------+ Best States ------------- Heat Dissipation 84 Energy Generation 17 Energy Capacity 300 Matter Stores 300 Matter Capacity 300 Sight Range 20 Terrain Scan Range 18 Terrain Scan Density 210 ECM Strength 2 Jamming Range 16 Additional Mass Support 9 Armor Coverage 225 Core Shielding 20 Utility Shielding 66 Weapon Shielding 66 Evasion (%) 64 Targeting Accuracy 8 Target Analysis 5 Recoil Reduction 3 Offensive Hacking 10 Item Schematics ----------------- Hcp. Storage Unit | -10/Materials | Hacked Adv. Targeting Computer | -8/Materials | Hacked Combat Drone Bay | -7/Data Miner | Free Lgt. Regenerative Plating | -7/Data Miner | Free Biomechanical Wings | -7/Data Miner | Free Gravity Neutralizer | -7/Data Miner | Free Imp. Lightning Gun | -7/Data Miner | Free Hvy. Treads | -7/Data Miner | Free Imp. Transmission Jammer | -7/Data Miner | Free Adv. Plasma Cannon | -7/Data Miner | Free Flexi-carbon Leg | -7/Data Miner | Free Linear Gravjet | -7/Data Miner | Free Point Defense System | -7/Data Miner | Free Adv. Thermal Generator | -7/Data Miner | Free Robot Schematics ------------------ C-17 Slicer | -7/Data Miner | Free M-28 Smith | -7/Data Miner | Free B-48 Gladiator | -7/Data Miner | Free A-15 Conveyor | -7/Data Miner | Free G-50 Soldier | -7/Data Miner | Free Fabricated ------------ Nothing Alien Tech Used ----------------- None Achievements -------------- None Challenges ------------ None Game ------ Seed ScatterDynamicBank Manual? 0 Play Time 01:44:18 Cumulative 152.8 hours Start 2025.03.12 @ 18:58:02 End 2025.03.13 @ 20:13:38 Sessions 5 Manual Loads 0 Difficulty Rogue Special Mode None Game No. 86 Rogue 86 Adventurer 0 Explorer 0 Win Type - Total 3 Types 3/0/0/0/0/0/0/0/0 Lore% 61 Gallery% 69 Achievement% 57 Wizard Run 0 Options --------- Layout 0 ASCII 1 Keyboard 1 Movement Numpad Keybinds 0 Fullscreen 2 Font 20/Terminus Map View 66x50 Zoom Use 0% Tactical HUD 1 Map Filters NONE Filters NONE Steam 1 RUN: 9c2e8967-076c-4841-aaaf-3f5350377520